Cogmind - Beta 13 @@@ ROGUE MODE // 2024.04.01 @ 23:55:41 Player: CONM Result: Destroyed by Y-45 Defender with Beam Rifle Performance ------------- Evolutions (1) 500 Regions Visited (2) 400 Robots Destroyed (20) 100 Value Destroyed (357) 357 Prototype IDs (0) 0 Alien Tech Used (0) 0 Bonus (0) 0 TOTAL SCORE: 1357 Bonus ------- None Cogmind --------- Core Integrity 0/400 Matter 281/300 Energy 100/100 System Corruption 7% Temperature Cool (15) Movement Core (50) Location -9/Materials Parts ------- > --- POWER (1) -------- (None) > --- PROPULSION (4) --- (None) > --- UTILITY (2) ------ (None) > --- WEAPON (2) ------- (None) > --- INVENTORY (5) ---- Ion Engine Medium Matter Pod (0) Peak State ------------ > --- POWER ------------ Light Ion Engine > --- PROPULSION ------- VTOL Module VTOL Module VTOL Module VTOL Module > --- UTILITY ---------- Signal Interpreter Light Armor Plating > --- WEAPON ----------- Light Assault Rifle Datajack > --- INVENTORY -------- Medium Matter Pod Medium Laser [Rating: 13] Favorites ----------- Power Ion Engine Engine Ion Engine Propulsion Light Treads Treads Light Treads Wheel Wheel Hover Unit Improved Hover Unit Flight Unit VTOL Module Utility Large Storage Unit Device Seismic Detector Storage Large Storage Unit Processor Signal Interpreter Protection Light Armor Plating Weapon Assault Rifle Energy Gun Medium Laser Ballistic Gun Assault Rifle Launcher Grenade Launcher Special Melee Weapon Datajack Build | -11 -10 -9 ------- Run | Yrd Mat Mat Slots Evolved 2 | . . 2 Power . | . . . Propulsion 2 | . . 2 Utility . | . . . Weapon . | . . . Parts Attached 36 | 6 22 8 Power 3 | 1 2 . Engine 3 | 1 2 . Core . | . . . Reactor . | . . . Propulsion 16 | 2 9 5 Treads 4 | 2 2 . Leg . | . . . Wheel 4 | . 4 . Hover 2 | . 2 . Flight 6 | . 1 5 Utility 6 | 2 3 1 Device 2 | 1 1 . Storage 2 | 1 1 . Processor 1 | . 1 . Hackware . | . . . Protection 1 | . . 1 Artifact . | . . . Weapon 11 | 1 8 2 Energy Gun 2 | . 1 1 Energy Cannon . | . . . Ballistic Gun 4 | 1 2 1 Ballistic Cannon . | . . . Launcher 4 | . 4 . Special Weapon . | . . . Impact Weapon . | . . . Slashing Weapon . | . . . Piercing Weapon . | . . . Special Melee Weapon 1 | . 1 . Unidentified Prototypes . | . . . Parts Lost 16 | . 5 11 Power 2 | . 1 1 Propulsion 6 | . 1 5 Utility 3 | . 1 2 Weapon 5 | . 2 3 Highest Loss Streak 11 | . 3 11 To Critical Strikes 1 | . 1 . Average Slot Usage (%) 93 | . 95 70 Engine 13 | . 13 9 Treads 15 | . 17 . Wheel 8 | . 9 . Flight 2 | . . 28 Device 9 | . 10 . Storage 12 | . 14 . Processor 2 | . 2 9 Energy Gun 8 | . 9 1 Ballistic Gun 8 | . 8 7 Launcher 4 | . 5 . Special Melee Weapon 3 | . 3 4 Naked Turns 12 | . . 12 Heaviest Build 31 | 13 31 8 Greatest Support 40 | 40 40 16 Greatest Overweight (x) 2 | . 2 . Average Overweight (x) . | . . . Largest Inventory Capacity 15 | 8 15 15 Average Capacity 12 | 7 14 5 Most Carried 15 | 8 15 14 Average Carried 9 | 3 11 3 Final Capacity 15 | 8 15 5 Final Carried 14 | 8 14 2 Class Distribution -------------------- 95% | Mutant 4% | Sprinter Dominant Class ---------------- Mutant | -10/Materials Sprinter | -9/Materials Resources | -11 -10 -9 ----------- Run | Yrd Mat Mat Matter Collected 678 | 314 257 107 Remotely . | . . . Salvage Created 617 | 104 365 148 Parts 49 | 6 29 14 Haulers Intercepted . | . . . Recyclers Shooed . | . . . Parts Field Recycled . | . . . Retrieved Matter . | . . . Parts Self-Destructed . | . . . Prevented . | . . . Kills | -11 -10 -9 ------- Run | Yrd Mat Mat Combat Hostiles Destroyed 12 | . 7 5 Guns 10 | . 6 4 AOE 1 | . 1 . Classes Destroyed 8 | 2 4 2 Worker 1 | . 1 . Tunneler 2 | 2 . . Recycler 3 | 1 2 . Watcher 2 | . 2 . Swarmer 8 | . 5 3 Grunt 2 | . 2 . Brawler 1 | . . 1 Sentry 1 | . . 1 Best Kill Streak 6 | 1 6 3 Combat Bots Only 5 | . 5 3 Max Kills in Single Turn 3 | 1 3 1 Gunslinging . | . . . Exploded 1 | . 1 . Melee . | . . . Uniques/NPCs Destroyed . | . . . Combat | -11 -10 -9 -------- Run | Yrd Mat Mat Hostile Shots Fired 175 | . 56 119 Missed 51 | . 12 39 Damage Taken 1374 | . 547 827 Core 527 | . 119 408 Absorbed by Shields . | . . . Core Remaining (%) 76 | 100 52 . Volleys Fired 80 | 18 37 25 Largest 2 | 1 2 1 Hottest 70 | 20 70 50 Shots Fired 85 | 18 42 25 Gun 73 | 18 30 25 Cannon . | . . . Launcher 12 | . 12 . Special . | . . . Kinetic 53 | 18 19 16 Thermal 20 | . 11 9 Explosive 12 | . 12 . Electromagnetic . | . . . Robot Hit Streak 6 | 5 6 5 Robot Miss Streak 2 | 2 2 1 Penetration Max . | . . . Secondary Targets . | . . . Shots Hit Robots 51 | 13 18 20 Core Hits 30 | 4 16 10 Critical Kills . | . . . Critical Parts Destroyed . | . . . Critical Strikes 1 | . . 1 Burn 1 | . . 1 Melee Attacks 6 | . 6 . Impact . | . . . Slashing . | . . . Piercing . | . . . Sneak Attacks 2 | . 2 . Combat Hostiles . | . . . Follow-up Attacks . | . . . Damage Inflicted 807 | 166 423 218 Guns 597 | 166 238 193 Cannons . | . . . Explosions 162 | . 162 . Melee . | . . . Ramming 48 | . 23 25 Kinetic 432 | 166 174 92 Thermal 165 | . 64 101 Explosive 76 | . 76 . Electromagnetic 86 | . 86 . Impact . | . . . Slashing . | . . . Piercing . | . . . Highest Corruption 7 | . 2 7 Average Corruption 2 | . 2 6 Corruption Purged . | . . . Corruption Blocked . | . . . Effects 4 | . 3 1 Message Errors 1 | . . 1 Matter Fused 1 | . 1 . Energy Discharges 2 | . 2 . Overload Shots . | . . . Overflow Damage . | . . . Projectiles . | . . . Explosions . | . . . Melee . | . . . Knockbacks . | . . . Impact . | . . . Kinetic . | . . . Secondary . | . . . Self-Inflicted Damage 103 | . 92 11 Shots 5 | . 5 . Rammed 7 | . 1 6 Targets Rammed 7 | . 1 6 Kicked . | . . . Crushed . | . . . Highest Temperature 50 | . 18 50 Average Temperature 18 | . 10 20 Received Heat Transfer 264 | . 135 129 Siege Activations . | . . . Robots Corrupted . | . . . Combat Hostiles . | . . . Parts Fried . | . . . Impact Corruptions . | . . . Robots Melted 1 | . . 1 Combat Hostiles 1 | . . 1 Parts Melted 2 | . 2 . Heat Transferred 555 | . 185 370 Parts Sabotaged . | . . . Parts Stolen . | . . . Parts Stripped . | . . . Power Chain Reactions . | . . . Alert | -11 -10 -9 ------- Run | Yrd Mat Mat Peak Influence 251 | 15 251 133 Initial 53 | . 9 53 Average 71 | 6 86 90 Maximum Alert Level 1 | . 1 . Low Security (%) 96 | 100 94 100 Level 1 3 | . 5 . Level 2 . | . . . Level 3 . | . . . Level 4 . | . . . Level 5 . | . . . High Security . | . . . Max Security . | . . . Squads Dispatched 3 | . 1 2 Investigation 1 | . . 1 Extermination . | . . . Reinforcement 2 | . 1 1 Assault . | . . . Garrison . | . . . Intercept . | . . . Searches Triggered . | . . . Construction Impeded . | . . . Haulers Reinforced . | . . . Active Scanning Responses . | . . . Cargo Convoy Interrupts . | . . . Stealth | -11 -10 -9 --------- Run | Yrd Mat Mat Distress Signals 3 | . 2 1 Communications Jammed . | . . . Distress Signals . | . . . Times Spotted 38 | . 21 17 Peak Tracking Total 14 | . 4 14 Tactical Retreats 2 | . 2 . Traps | -11 -10 -9 ------- Run | Yrd Mat Mat Traps Triggered 4 | . 3 1 Indirectly . | . . . Trap Hack Attempts . | . . . Triggered . | . . . Disarmed . | . . . Reprogrammed . | . . . Reused . | . . . Traps Extracted . | . . . Installed . | . . . Triggered . | . . . Machines | -11 -10 -9 ---------- Run | Yrd Mat Mat Machines Disabled 5 | . 5 . Max in Single Turn 2 | . 2 . Machines Repaired . | . . . Machines Dismantled . | . . . Machines Sabotaged . | . . . Overloaded Fab Kills . | . . . Hacking | -11 -10 -9 --------- Run | Yrd Mat Mat Machines Accessed 5 | . 5 . Terminals 3 | . 3 . Fabricators . | . . . Repair Stations 1 | . 1 . Recycling Units 1 | . 1 . Scanalyzers . | . . . Garrison Access . | . . . Total Hacks 11 | . 11 . Successful 8 | . 8 . Failed 3 | . 3 . Catastrophic . | . . . Database Lockouts . | . . . Manual . | . . . Terminals 3 | . 3 . Fabricators . | . . . Repair Stations 3 | . 3 . Recycling Units 5 | . 5 . Scanalyzers . | . . . Garrison Access . | . . . Terminal Hacks 1 | . 1 . Zone Layout 1 | . 1 . Fabricator Hacks . | . . . Repair Station Hacks 3 | . 3 . Scan Component 1 | . 1 . Repair 1 | . 1 . Refit 1 | . 1 . Recycling Unit Hacks 4 | . 4 . Recycle Component 1 | . 1 . Process 1 | . 1 . Report Inventory 1 | . 1 . Retrieve Matter 1 | . 1 . Scanalyzer . | . . . Garrison Access Hacks . | . . . Unauthorized Hacks . | . . . Terminals . | . . . Fabricators . | . . . Repair Stations . | . . . Recycling Units . | . . . Scanalyzers . | . . . Garrison Access . | . . . Data Cores Recovered . | . . . Used . | . . . Hacking Detections 2 | . 2 . Full Trace Events 1 | . 1 . Feedback Events . | . . . Feedback Blocked . | . . . Robot Schematics Acquired . | . . . Robots Built . | . . . Authchips . | . . . Time . | . . . Total Robot Build Rating . | . . . Part Schematics Acquired . | . . . Parts Built . | . . . Authchips . | . . . Time . | . . . Total Part Build Rating . | . . . Parts Repaired 1 | . 1 . Time 36 | . 36 . Parts Recycled 1 | . 1 . Recycled Matter 189 | . 189 . Retrieved Matter 34 | . 34 . Retrieved Components . | . . . Parts Scanalyzed . | . . . Part Schematics Acquired . | . . . Parts Damaged . | . . . Bothacking | -11 -10 -9 ------------ Run | Yrd Mat Mat Used RIF Installer . | . . . Robots Hacked 1 | . 1 . Non-combat 1 | . 1 . Combat . | . . . Robot Hacks Applied 2 | . 2 . parse_system 1 | . 1 . no_distress 1 | . 1 . Relay Couplers Released . | . . . Fabnet Peak Effective % . | . . . Robots Rewired . | . . . Allies Hacked . | . . . Hacks Repelled . | . . . Allies | -11 -10 -9 -------- Run | Yrd Mat Mat Total Allies . | . . . Largest Group . | . . . Highest-Rated Group . | . . . Highest-Rated Ally . | . . . Total Orders . | . . . Ally Attacks . | . . . Total Damage . | . . . Kills . | . . . Allies Corrupted . | . . . Allies Melted . | . . . Intel | -11 -10 -9 ------- Run | Yrd Mat Mat Robot Analysis Total . | . . . Derelict Logs Recovered . | . . . Drone Launches . | . . . Drone Recoveries . | . . . Exploration | -11 -10 -9 ------------- Run | Yrd Mat Mat Turns Passed 1627 | 303 1201 123 Spaces Moved 1130 | 175 786 169 Core 30 | 29 . 1 Treads 562 | 146 416 . Legs . | . . . Wheels 370 | . 370 . Hover . | . . . Flight 168 | . . 168 Fastest Speed 26 | 50 95 26 Average Speed 116 | 141 130 26 Slowest Speed 160 | 160 160 50 Overloaded Moves . | . . . Propulsion Burnouts . | . . . Robots Hopped . | . . . Cave-ins Triggered . | . . . Exploration Rate (%) 35 | 7 78 21 Regions Visited 2 Branch Regions . Pre-discovered Areas . | . . . Known Exits Taken 1 | . 1 . Unknown Exits Taken 1 | 1 . . Scrap Searched . | . . . Spaces Dug 44 | . 44 . Terrain Destroyed 84 | . 84 . Melee . | . . . Projectile . | . . . AOE 84 | . 84 . Terrain Rammed 1 | . 1 . Walls Destroyed . | . . . Machines Disabled . | . . . Actions | -11 -10 -9 --------- Run | Yrd Mat Mat Total 1362 | 212 920 230 Wait 38 | . 27 11 Move 1128 | 174 785 169 Hop . | . . . Pick Up 41 | 14 25 2 Fast Attach . | . . . Attach 29 | 6 15 8 Detach 6 | . 6 . Swap 7 | . 7 . Drop 19 | . 10 9 Fire 80 | 18 37 25 Melee 6 | . 6 . Ram 8 | . 2 6 Kick . | . . . Crush . | . . . Escape Stasis . | . . . Rewire . | . . . Trap . | . . . Miscellaneous . | . . . Route ------- -11/Scrapyard -10/Materials (discovered 4 exits: *Mat x3 / *Min) -9/Materials History --------- Turn | Location | Event 16 | -11/Scrapyard | Discovered new exit (range 15) 304 | -11/Scrapyard | Entered Materials 305 | -10/Materials | Build established: Mutant 900 | -10/Materials | Repaired Broken Ion Engine? 1081 | -10/Materials | Discovered new exit (range 14) 1194 | -10/Materials | Lost 3 parts (1p1n1u) 1214 | -10/Materials | Discovered new exit (range 8) 1318 | -10/Materials | Discovered new exit (range 9) 1326 | -10/Materials | Identified exit to Mines 1392 | -10/Materials | Discovered new exit (range 16) 1504 | -10/Materials | Identified exit to Materials 1505 | -10/Materials | Entered another Materials area 1505 | -9/Materials | Evolved 2 slots: Propulsion x2 1622 | -9/Materials | Core integrity fell below 50% 1626 | -9/Materials | Core integrity fell below 20% 1628 | -9/Materials | Destroyed by Y-45 Defender with Beam Rifle Last Messages --------------- Y-45 Defender destroyed. VTOL Module destroyed. Lgt. Armor Plating destroyed. System corrupted by crushing effect (+4). Lgt. Ion Engine destroyed. Signal Interpreter destroyed. System corrupted by crushing effect (+2). VTOL Module destroyed. System corrupted by crushing effect (+1). B-36 Bruiser suffers critical hit (Burn). B-36 Bruiser critical meltdown. Acquired 67 matter. Slammed into S-10 Pest. Med. Laser destroyed. Slammed into S-10 Pest. Acquired 10 matter. Slammed into G-34 Mercenary. G-34 Mercenary suffers critical hit (Burn). UOEQBTIKBVJ8Y:YREY8UTZ2 SEITE G-34 Mercenary suffers critical hit (Burn). Map ----- +----------------------------------------------------+ | | | | | | | | | ?????????????????????????????????????????????????? | | ?????????????????????????????????????????????????? | | ?????????????????????????????????????????????????? | | ?????????????????????????????????????????????????? | | ?????????????????????????????????????????????????? | | ?????????????????????????????????????????????????? | | ?????????????????????????????????????????????????? | | ?????????????????????????????????????????????????? | | ?????????????????????????????????????????????????? | | ???????????????????????????????#?????????????????? | | ??????????????????????????????? ?????????????????? | | ?????????????????????????????? ??????????????????? | | ?????????????????????????????? ??????????????????? | | ???????????????????######???? #??????????????????? | | ???????????????????# ^ #???? #??????????????????? | | ???????????????????# /#??? #??????????????????? | | ???????????????????#^ =%#??? #??????????????????? | | ???????????????????# =!*#?? #######????????????? | | ???????????????????#=!![#?? #????????????? | | ???????????????????#[= [#? #????????????? | | ??????????????????####+### #????????????? | | ??????????????????# = [g@ #??????????? | | ??????????????????# s=Ygg a o/ ????????? | | ??????????????????# sa #??????????? | | ??????????????????# gs ###+####??????????? | | ??????????????????# #?????????????????? | | ???????????#####??# ! #?????????????????? | | ???????????# ""#??# %=" #?????????????????? | | ???????????#""S#??# """ #?????????????????? | | ?????????###"" #### """ #?????????????????? | | ?????????# # """ #?????????????????? | | ?????????# """""[# "" #?????????????????? | | ?????????# """""[# """ a #?????????????????? | | ????????# """"" # "" %########??????????? | | ????????## + """ #??????????? | | ?????????#"" # " #??????????? | | ?????????#"T # """ #??????????? | | ?????????#"" # """ #??????????? | | ?????????# # """ """ ###########? | | ?????????########## """ # #? | | ??????????????????# """ # #? | | ??????????????????# """ """ # #? | | ??????????????????# """ + #? | | ??????????????????# """ # #? | | ??????????????????# # #? | | ??????????????????# # #? | +----------------------------------------------------+ Best States ------------- Heat Dissipation 28 Energy Generation 10 Energy Capacity 250 Matter Stores 300 Matter Capacity 300 Sight Range 16 Terrain Scan Range 16 Terrain Scan Density 10 Armor Coverage 150 Evasion (%) 64 Recoil Reduction 2 Item Schematics ----------------- None Robot Schematics ------------------ None Fabricated ------------ Nothing Alien Tech Used ----------------- None Achievements -------------- None Challenges ------------ None Game ------ Seed TractorKineticKinecellerator Manual? 0 Play Time 00:40:36 Cumulative 3.1 hours Start 2024.04.01 @ 03:20:49 End 2024.04.01 @ 23:55:41 Sessions 3 Manual Loads 0 Difficulty Rogue Special Mode None Game No. 8 Rogue 8 Adventurer 0 Explorer 0 Win Type - Total 0 Types 0/0/0/0/0/0/0/0/0 Lore% 4 Gallery% 6 Achievement% 5 Wizard Run 0 Options --------- Layout 1 ASCII 0 Keyboard 0 Movement Arrows Keybinds 0 Fullscreen 1 Font 24/Smallcaps Map View 50x40 Zoom Use 0% Tactical HUD 0 Map Filters NONE Filters NONE Steam 1 RUN: bf4f979f-afb5-4c14-abf8-1961596d1bbc